fUST/lending_fUST_20260115
["ID","MTS","AMOUNT","RATE_DAILY","PERIOD"]
[401970177,1768428639932,-469.38,0.00016824,3]
[401970178,1768428639943,-3500.0,0.00016986,2]
[401970179,1768428639952,-3500.0,0.00016986,2]
[401970180,1768428639962,-3500.0,0.00016986,2]
[401970181,1768428639971,-270.0,0.00016986,2]
[401970182,1768428639980,-4000.0,0.00017108,2]
[401970183,1768428639990,-4000.0,0.00017108,2]
[401970184,1768428639999,-280.0,0.00017224,2]
[401970185,1768428640009,-864.0,0.00017242,2]
[401970186,1768428640019,-2400.0,0.0001726,2]
[401970187,1768428640029,-823.0,0.00017364,2]
[401970188,1768428640038,-359.0,0.00017418,2]
[401970189,1768428640047,-400.0,0.00017534,2]
[401970190,1768428640057,-4000.0,0.00017534,2]
[401970191,1768428640066,-4000.0,0.00017534,2]
[401970192,1768428640075,-4000.0,0.00017534,2]
[401970193,1768428640085,-174.48080933,0.00017534,2]
[401970194,1768428640094,-4500.0,0.00017656,2]
[401970195,1768428640103,-4500.0,0.00017656,2]
[401970196,1768428640113,-100000.0,0.0001799,2]
[401970197,1768428640123,-4500.0,0.00018082,2]
[401970198,1768428640132,-4500.0,0.00018082,2]
[401970199,1768428640142,-1041.66666667,0.00018171,2]
[401970200,1768428640152,-5000.0,0.00018204,2]
[401970201,1768428640161,-5000.0,0.00018204,2]
[401970202,1768428640170,-1107.61092211,0.00018356,2]
[401970203,1768428640179,-8540.05724789,0.00018461,2]
[401970204,1768428640189,-5000.0,0.00018555,2]
[401970205,1768428640199,-600.0,0.0001863,2]
[401970206,1768428640210,-5000.0,0.0001863,2]
[401970207,1768428640220,-5000.0,0.0001863,2]
[401970208,1768428640230,-539.11552521,0.00018682,2]
[401970209,1768428640240,-5500.0,0.00018752,2]
[401970210,1768428640250,-5500.0,0.00018752,2]
[401970211,1768428640260,-714.6,0.00018774,2]
[401970212,1768428640271,-339.47924348,0.000189,2]
[401970213,1768428640281,-303.10001603,0.000189,2]
[401970214,1768428640292,-931.46,0.00018923,2]
[401970215,1768428640302,-1000.0,0.00018966,2]
[401970216,1768428640313,-1152.0,0.00019039,2]
[401970217,1768428640322,-303.10001603,0.00019089,2]
[401970218,1768428640332,-5500.0,0.00019178,2]
[401970219,1768428640343,-5500.0,0.00019178,2]
[401970220,1768428640356,-167.77,0.000192,2]
[401970222,1768428640369,-218.33,0.000192,2]
[401970224,1768428640379,-248.76,0.000192,2]
[401970225,1768428640389,-303.10001603,0.00019278,2]
[401970226,1768428640399,-6000.0,0.000193,2]
[401970227,1768428640409,-5073.24025849,0.000193,2]
[401970228,1768428640420,-303.10001603,0.00019467,2]
[401970229,1768428640431,-303.10001603,0.00019656,2]
[401970230,1768428640440,-800.0,0.00019726,2]
[401970231,1768428640450,-6000.0,0.00019726,2]
[401970232,1768428640463,-2446.58201638,0.00019726,2]
[401970233,1768428640472,-250.0,0.00019726,2]
[401970234,1768428640482,-454.65002405,0.00019845,4]
[401970235,1768428640491,-1683.87260271,0.00019848,2]
[401970236,1768428640500,-182.95072115,0.0002,2]
[401970237,1768428640509,-151.55000802,0.0002,2]
[401970238,1768428640519,-300.0,0.0002,2]
[401970239,1768428640528,-714.6,0.00020007,2]
[401970240,1768428640538,-454.65002405,0.00020034,4]
[401970241,1768428640547,-454.65002405,0.00020223,4]
[401970242,1768428640556,-157.06656927,0.0002023,5]
[401970243,1768428640565,-6500.0,0.00020274,2]
[401970244,1768428640575,-350.0,0.00020274,2]
[401970245,1768428640584,-500.0,0.0002037,2]
[401970246,1768428640594,-454.65002405,0.00020412,4]
[401970247,1768428640603,-454.65002403,0.00020601,4]
[401970248,1768428640612,-602.12902816,0.00020682,2]
[401970249,1768428640621,-1000.0,0.00020822,2]
[401970250,1768428640631,-7000.0,0.00020822,2]
[401970251,1768428640640,-450.0,0.00020822,2]
[401970252,1768428640649,-159.42428313,0.00020856,5]
[401970253,1768428640658,-157.06656927,0.00020856,5]
[401970254,1768428640667,-1000.0,0.00020863,2]
[401970255,1768428640677,-244.0,0.00020863,2]
[401970256,1768428640686,-1613.0,0.00020876,2]
[401970257,1768428640695,-931.46,0.00020969,2]
[401970258,1768428640706,-931.46,0.00020979,2]
[401970259,1768428640715,-931.46,0.00020989,2]
[401970260,1768428640725,-931.46,0.00020989,2]
[401970261,1768428640735,-931.46,0.00020989,2]
[401970262,1768428640744,-931.46,0.00020989,2]
[401970263,1768428640753,-931.46,0.00020989,2]
[401970265,1768428640923,-3972.73734846,0.0002099,2]
[401970266,1768428640937,-931.46,0.00020999,2]
[401970267,1768428640947,-3000.0,0.00021,2]
[401970268,1768428640957,-9661.0,0.00021,2]
[401970269,1768428640966,-3915.7,0.00021,2]
[401970270,1768428640975,-3000.0,0.0002101,2]
[401970271,1768428640984,-35043.543023,0.0002101,7]
[401970272,1768428640993,-3000.0,0.0002102,2]
[401970273,1768428641003,-931.46,0.00021029,2]
[401970274,1768428641012,-2847.583313,0.00021029,7]
[401970275,1768428641022,-3000.0,0.0002103,2]
[401970276,1768428641031,-402.28551192,0.0002103,2]
[401970277,1768428641041,-3000.0,0.0002104,2]
[401970278,1768428641051,-3000.0,0.0002105,2]
[401970279,1768428641060,-500.0,0.00021059,2]
[401970280,1768428641070,-3000.0,0.0002106,2]
[401970281,1768428641080,-17491.406928,0.0002106,7]
[401970282,1768428641089,-3000.0,0.0002107,2]
[401970283,1768428641099,-931.46,0.00021079,2]
[401970284,1768428641108,-500.0,0.00021079,2]
[401970285,1768428641117,-3000.0,0.0002108,2]
[401970286,1768428641127,-3000.0,0.0002109,2]
[401970287,1768428641136,-43728.517321,0.0002109,7]
[401970288,1768428641146,-87608.857558,0.0002109,7]
[401970289,1768428641155,-3000.0,0.000211,2]
[401970290,1768428641164,-248.76,0.000211,2]
[401970291,1768428641174,-218.33,0.000211,2]
[401970292,1768428641183,-7118.958281,0.000211,7]
[401970293,1768428641194,-8540.05724789,0.00021105,2]
[401970294,1768428641205,-3000.0,0.0002111,2]
[401970295,1768428641215,-3000.0,0.0002112,2]
[401970296,1768428641225,-3000.0,0.0002113,2]
[401970297,1768428641235,-931.46,0.00021139,2]
[401970298,1768428641244,-5919.793705,0.0002114,2]
[401970299,1768428641254,-714.6,0.0002124,2]
[401970300,1768428641264,-7500.0,0.0002137,2]
[401970301,1768428641275,-550.0,0.0002137,2]
[401970302,1768428641284,-159.42428312,0.00021469,5]
[401970303,1768428641294,-90396.871913,0.00021501,7]
[401970304,1768428641304,-21680.573732,0.00021605,7]
[401970305,1768428641314,-29614.9,0.000217,2]
[401970306,1768428641323,-931.46,0.00021817,2]
[401970307,1768428641333,-931.46,0.00021817,2]
[401970308,1768428641343,-931.46,0.00021817,2]
[401970309,1768428641356,-931.46,0.00021817,2]
[401970310,1768428641366,-931.46,0.00021817,2]
[401970311,1768428641376,-931.46,0.00021817,2]
[401970312,1768428641385,-931.54262824,0.00021817,2]
[401970313,1768428641396,-1000000.0,0.00021818,2]
[401970314,1768428641406,-151.0,0.00021918,2]
[401970315,1768428641416,-151.0,0.00021918,2]
[401970316,1768428641427,-1200.0,0.00021918,2]
[401970317,1768428641436,-1364.52541442,0.00021918,2]
[401970318,1768428641446,-650.0,0.00021918,2]
[401970319,1768428641455,-3972.73734843,0.00021943,2]
[401970320,1768428641465,-2322.78,0.00022,7]
[401970321,1768428641474,-159.42428313,0.00022133,5]
[401970322,1768428641484,-160.35823449,0.00022263,2]
[401970323,1768428641493,-300.0,0.00022466,2]
[401970324,1768428641503,-200.0,0.00022466,2]
[401970325,1768428641513,-750.0,0.00022466,2]
[401970326,1768428641523,-714.6,0.00022472,2]
[401970327,1768428641532,-665.1425311,0.00022682,2]
[401970328,1768428641542,-3915.7,0.000227,14]
[401970329,1768428641552,-2258.0,0.0002289,2]
[401970330,1768428641562,-3972.73734843,0.00022895,2]
[401970331,1768428641572,-1000.0,0.00022949,10]
[401970332,1768428641582,-492.0,0.00022949,10]
[401970333,1768428641592,-30000.0,0.00023012,2]
[401970334,1768428641602,-450.0,0.00023014,2]
[401970335,1768428641611,-1400.0,0.00023014,2]
[401970336,1768428641621,-260.92385342,0.00023014,2]
[401970337,1768428641631,-850.0,0.00023014,2]
[401970338,1768428641641,-160.0,0.00023014,6]
[401970339,1768428641650,-248.76,0.000231,7]
[401970340,1768428641660,-218.33,0.000231,7]
[401970341,1768428641669,-169.45964144,0.00023178,9]
[401970342,1768428641678,-293.85068442,0.00023192,2]
[401970343,1768428641687,-1600.0,0.00023199,2]
[401970344,1768428641697,-167.77,0.000232,7]
[401970345,1768428641707,-1600.0,0.00023264,2]
[401970346,1768428641717,-1600.0,0.00023274,2]
[401970347,1768428641727,-900.0,0.00023285,2]
[401970348,1768428641737,-1600.0,0.00023287,2]
[401970349,1768428641746,-29614.9,0.000233,2]
[401970350,1768428641757,-522.88356834,0.00023316,2]
[401970351,1768428641766,-190.0,0.0002334,2]
[401970352,1768428641776,-1600.0,0.00023354,2]
[401970353,1768428641786,-900.0,0.0002336,2]
[401970354,1768428641796,-1600.0,0.00023365,2]
[401970355,1768428641805,-1600.0,0.00023414,2]
[401970356,1768428641815,-2322.78,0.000235,7]
[401970357,1768428641825,-900.0,0.00023519,2]
[401970358,1768428641834,-500.0,0.00023523,2]
[401970359,1768428641844,-900.0,0.00023533,2]
[401970360,1768428641853,-475.0,0.00023545,7]
[401970361,1768428641863,-475.0,0.00023545,7]
[401970362,1768428641873,-475.0,0.00023545,7]
[401970363,1768428641882,-475.0,0.00023545,7]
[401970364,1768428641892,-475.0,0.00023545,7]
[401970365,1768428641903,-475.0,0.00023545,7]
[401970366,1768428641912,-475.0,0.00023545,7]
[401970367,1768428641922,-475.0,0.00023545,7]
[401970368,1768428641932,-475.0,0.00023545,7]
[401970369,1768428641941,-475.0,0.00023545,7]
[401970370,1768428641950,-475.0,0.00023545,7]
[401970371,1768428641960,-475.0,0.00023545,7]
[401970372,1768428641969,-475.0,0.00023545,7]
[401970373,1768428641979,-475.0,0.00023545,7]
[401970374,1768428641988,-475.0,0.00023545,7]
[401970375,1768428641997,-475.0,0.00023545,7]
[401970376,1768428642006,-475.0,0.00023545,7]
[401970377,1768428642016,-475.0,0.00023545,7]
[401970378,1768428642026,-475.0,0.00023545,7]
[401970379,1768428642037,-475.0,0.00023545,7]
[401970380,1768428642046,-475.0,0.00023545,7]
[401970381,1768428642056,-475.0,0.00023545,7]
[401970382,1768428642066,-475.0,0.00023545,7]
[401970383,1768428642076,-475.0,0.00023545,7]
[401970384,1768428642086,-475.0,0.00023545,7]
[401970385,1768428642096,-475.0,0.00023545,7]
[401970386,1768428642105,-475.0,0.00023545,7]
[401970387,1768428642115,-475.0,0.00023545,7]
[401970388,1768428642124,-475.0,0.00023545,7]
[401970389,1768428642134,-475.0,0.00023545,7]
[401970390,1768428642144,-475.0,0.00023545,7]
[401970391,1768428642154,-475.0,0.00023545,7]
[401970392,1768428642165,-475.0,0.00023545,7]
[401970393,1768428642175,-475.0,0.00023545,7]
[401970394,1768428642186,-475.0,0.00023545,7]
[401970395,1768428642196,-475.0,0.00023545,7]
[401970396,1768428642208,-475.0,0.00023545,7]
[401970397,1768428642218,-475.0,0.00023545,7]
[401970398,1768428642230,-475.0,0.00023545,7]
[401970399,1768428642241,-475.0,0.00023545,7]
[401970400,1768428642254,-475.0,0.00023545,7]
[401970401,1768428642266,-475.0,0.00023545,7]
[401970402,1768428642277,-475.0,0.00023545,7]
[401970403,1768428642287,-475.0,0.00023545,7]
[401970404,1768428642297,-475.0,0.00023545,7]
[401970405,1768428642308,-475.0,0.00023545,7]
[401970406,1768428642319,-475.0,0.00023545,7]
[401970407,1768428642330,-475.0,0.00023545,7]
[401970408,1768428642341,-475.0,0.00023545,7]
[401970409,1768428642354,-475.0,0.00023545,7]
[401970410,1768428642364,-475.0,0.00023545,7]
[401970411,1768428642375,-475.0,0.00023545,7]
[401970412,1768428642385,-475.0,0.00023545,7]
[401970413,1768428642396,-475.0,0.00023545,7]
[401970414,1768428642406,-475.0,0.00023545,7]
[401970415,1768428642417,-475.0,0.00023545,7]
[401970416,1768428642427,-475.0,0.00023545,7]
[401970417,1768428642439,-475.0,0.00023545,7]
[401970418,1768428642450,-390.578,0.00023545,7]
[401970419,1768428642462,-996.312,0.00023546,7]
[401970420,1768428642472,-31110.0,0.0002356,2]
[401970421,1768428642483,-600.0,0.00023562,2]
[401970422,1768428642494,-500.0,0.00023562,2]
[401970423,1768428642504,-475.0,0.00023573,7]
[401970424,1768428642515,-475.0,0.00023573,7]
[401970425,1768428642525,-475.0,0.00023573,7]
[401970426,1768428642535,-475.0,0.00023573,7]
[401970427,1768428642546,-500.0,0.00023574,2]
[401970428,1768428642556,-1600.0,0.00023584,2]
[401970429,1768428642567,-499.3,0.00023615,2]
[401970430,1768428642578,-475.0,0.00023624,30]
[401970431,1768428642589,-475.0,0.00023624,30]
[401970432,1768428642599,-500.0,0.00023654,2]
[401970433,1768428642609,-1600.0,0.00023694,2]
[401970434,1768428642619,-500.0,0.00023703,2]
[401970435,1768428642629,-714.6,0.00023705,2]
[401970436,1768428642639,-237.0,0.00023726,11]
[401970437,1768428642650,-8540.05724789,0.00023749,2]
[401970438,1768428642660,-168.0,0.00023759,2]
[401970439,1768428642671,-168.0,0.00023764,2]
[401970440,1768428642682,-168.0,0.00023765,2]
[401970441,1768428642692,-1600.0,0.00023775,2]
[401970442,1768428642702,-900.0,0.00023787,2]
[401970443,1768428642713,-500.0,0.00023796,2]
[401970444,1768428642723,-900.0,0.00023834,2]
[401970445,1768428642733,-1600.0,0.00023838,2]
[401970446,1768428642743,-3972.73734843,0.00023848,2]
[401970447,1768428642753,-168.0,0.00023851,2]
[401970448,1768428642764,-900.0,0.00023853,2]
[401970449,1768428642773,-152.96957802,0.00023857,2]
[401970450,1768428642783,-5888.0,0.00023859,2]
[401970451,1768428642794,-900.0,0.00023871,2]
[401970452,1768428642804,-168.0,0.00023885,2]
[401970453,1768428642814,-168.0,0.00023898,2]
[401970454,1768428642823,-4880.93865903,0.00023898,2]
[401970455,1768428642833,-10490.600193,0.000239,30]
[401970456,1768428642843,-3915.7,0.000239,14]
[401970457,1768428642854,-500.0,0.00023911,2]
[401970458,1768428642864,-1041.66666667,0.00024,7]
[401970459,1768428642874,-900.0,0.00024003,2]
[401970460,1768428642885,-1600.0,0.00024009,2]
[401970461,1768428642895,-183.58,0.00024028,2]
[401970462,1768428642907,-900.0,0.0002407,2]
[401970463,1768428642918,-1600.0,0.00024074,2]
[401970464,1768428642928,-32261.07,0.00024108,2]
[401970465,1768428642939,-750.0,0.0002411,2]
[401970466,1768428642950,-201.4141805,0.0002411,2]
[401970467,1768428642961,-1600.0,0.0002411,2]
[401970468,1768428642972,-900.0,0.00024129,2]
[401970469,1768428642983,-500.0,0.00024139,2]
[401970470,1768428642994,-1600.0,0.00024141,2]
[401970471,1768428643005,-1600.0,0.00024148,2]
[401970472,1768428643016,-14601.476259,0.00024161,30]
[401970473,1768428643027,-1186.493047,0.00024183,30]
[401970474,1768428643038,-900.0,0.00024187,2]
[401970475,1768428643048,-5888.0,0.00024198,2]
[401970476,1768428643059,-900.0,0.00024211,2]
[401970477,1768428643070,-7288.08622,0.00024219,30]
[401970478,1768428643080,-282.150442,0.00024256,2]
[401970479,1768428643091,-282.150442,0.00024256,2]
[401970480,1768428643101,-282.150442,0.00024256,2]
[401970481,1768428643112,-282.150442,0.00024256,2]
[401970482,1768428643122,-151.0,0.00024256,2]
[401970483,1768428643132,-151.0,0.00024256,2]
[401970484,1768428643143,-151.0,0.00024256,2]
[401970486,1768428643153,-151.0,0.00024256,2]
[401970487,1768428643163,-151.0,0.00024256,2]
[401970489,1768428643175,-222.382788,0.00024256,2]
[401970490,1768428643186,-151.0,0.00024256,2]
[401970491,1768428643197,-1600.0,0.00024267,2]
[401970492,1768428643207,-168.0,0.00024297,2]
[401970493,1768428643218,-29614.9,0.000243,2]
[401970495,1768428643229,-1600.0,0.00024346,2]
[401970496,1768428643240,-5888.0,0.00024353,2]
[401970498,1768428643250,-500.0,0.00024376,2]
[401970499,1768428643261,-791.34915639,0.00024377,2]
[401970500,1768428643274,-248.76,0.000244,7]
[401970501,1768428643285,-218.33,0.000244,7]
[401970502,1768428643297,-813.50644317,0.0002442,11]
[401970503,1768428643310,-180.22347711,0.00024428,2]
[401970504,1768428643322,-500.0,0.00024451,2]
[401970505,1768428643332,-900.0,0.00024451,2]
[401970506,1768428643343,-500.0,0.00024452,2]
[401970507,1768428643354,-202.526,0.00024455,2]
[401970508,1768428643365,-221.878,0.00024455,2]
[401970509,1768428643376,-200.858,0.00024455,2]
[401970510,1768428643387,-1600.0,0.00024492,2]
[401970511,1768428643399,-2322.78,0.000245,7]
[401970512,1768428643409,-1600.0,0.00024506,2]
[401970513,1768428643420,-1600.0,0.00024514,2]
[401970514,1768428643432,-500.0,0.00024543,2]
[401970516,1768428643476,-168.0,0.00024555,2]
[401970517,1768428643487,-1600.0,0.00024568,2]
[401970518,1768428643497,-1600.0,0.00024623,2]
[401970519,1768428643507,-1600.0,0.00024635,2]
[401970520,1768428643517,-900.0,0.00024657,2]
[401970521,1768428643527,-286.74681137,0.00024658,2]
[401970522,1768428643537,-200.0,0.00024658,2]
[401970523,1768428643547,-500.0,0.00024658,2]
[401970524,1768428643557,-5888.0,0.00024667,2]
[401970525,1768428643567,-500.0,0.00024672,2]
[401970526,1768428643577,-900.0,0.00024678,2]
[401970527,1768428643587,-728.15603405,0.00024682,2]
[401970528,1768428643596,-1600.0,0.00024691,2]
[401970529,1768428643606,-900.0,0.0002471,2]
[401970530,1768428643616,-900.0,0.00024715,2]
[401970531,1768428643625,-37665.363297,0.00024726,30]
[401970532,1768428643635,-151.0,0.00024726,7]
[401970533,1768428643646,-151.0,0.00024726,7]
[401970534,1768428643656,-151.0,0.00024726,7]
[401970535,1768428643666,-151.0,0.00024726,7]
[401970536,1768428643676,-151.0,0.00024726,7]
[401970537,1768428643685,-900.0,0.00024735,2]
[401970538,1768428643696,-900.0,0.00024761,2]
[401970539,1768428643705,-5000.0,0.00024768,2]
[401970540,1768428643715,-900.0,0.00024789,2]
[401970541,1768428643724,-500.0,0.00024795,2]
[401970542,1768428643734,-500.0,0.00024798,2]
[401970543,1768428643745,-3972.73734843,0.000248,2]
[401970544,1768428643755,-900.0,0.00024814,2]
[401970545,1768428643765,-1000.0,0.00024815,30]
[401970546,1768428643775,-1000.0,0.00024815,30]
[401970547,1768428643785,-1000.0,0.00024815,30]
[401970548,1768428643795,-1000.0,0.00024815,30]
[401970549,1768428643806,-1000.0,0.00024815,30]
[401970550,1768428643815,-239.0,0.00024822,14]
[401970551,1768428643826,-775.21589515,0.00024858,3]
[401970552,1768428643837,-900.0,0.00024865,2]
[401970553,1768428643847,-900.0,0.0002487,2]
[401970554,1768428643857,-168.0,0.00024871,2]
[401970555,1768428643867,-500.0,0.00024873,2]
[401970556,1768428643877,-500.0,0.00024873,2]
[401970557,1768428643887,-500.0,0.00024873,2]
[401970558,1768428643899,-350.00260819,0.00024873,2]
[401970559,1768428643909,-900.0,0.00024885,2]
[401970560,1768428643919,-206.655593,0.000249,7]
[401970561,1768428643929,-206.655593,0.000249,7]
[401970562,1768428643939,-206.655593,0.000249,7]
[401970563,1768428643949,-206.655593,0.000249,7]
[401970564,1768428643959,-151.0,0.000249,7]
[401970565,1768428643970,-151.0,0.000249,7]
[401970566,1768428643980,-151.0,0.000249,7]
[401970567,1768428643990,-285.638493,0.000249,7]
[401970568,1768428644001,-282.150442,0.000249,7]
[401970569,1768428644012,-282.150442,0.000249,7]
[401970570,1768428644023,-282.150442,0.000249,7]
[401970571,1768428644033,-282.150442,0.000249,7]
[401970572,1768428644043,-151.0,0.000249,7]
[401970573,1768428644053,-151.0,0.000249,7]
[401970574,1768428644063,-151.0,0.000249,7]
[401970575,1768428644073,-151.0,0.000249,7]
[401970576,1768428644083,-151.0,0.000249,7]
[401970577,1768428644093,-151.0,0.000249,7]
[401970578,1768428644103,-580175.276332,0.000249,2]
[401970579,1768428644113,-151.0,0.000249,7]
[401970580,1768428644124,-151.0,0.000249,7]
[401970581,1768428644133,-215.302666,0.000249,7]
[401970582,1768428644144,-151.0,0.000249,7]
[401970583,1768428644154,-151.0,0.000249,7]
[401970584,1768428644165,-636.862,0.00024902,8]
[401970585,1768428644175,-500.0,0.00024932,2]
[401970586,1768428644185,-714.6,0.00024938,2]
[401970587,1768428644195,-813.50644317,0.00024943,12]
[401970588,1768428644205,-168.0,0.00024972,2]
[401970589,1768428644215,-1600.0,0.00024994,2]
[401970590,1768428644224,-1041.66666667,0.00025,30]
[401970591,1768428644235,-3915.7,0.00025,14]
[401970592,1768428644245,-1041.66666667,0.00025,30]
[401970593,1768428644255,-1600.0,0.00025013,7]
[401970594,1768428644266,-500.0,0.00025017,7]
[401970595,1768428644277,-3100.0,0.00025049,7]
[401970596,1768428644287,-500.0,0.00025064,7]
[401970597,1768428644297,-500.0,0.00025069,2]
[401970598,1768428644307,-5888.0,0.00025083,2]
[401970599,1768428644316,-629.0,0.00025092,2]
[401970600,1768428644326,-2147.0,0.00025092,2]
[401970601,1768428644335,-1367.0,0.00025092,2]
[401970602,1768428644344,-417.0,0.00025092,2]
[401970603,1768428644356,-417.0,0.00025092,2]
[401970604,1768428644367,-772.163,0.00025092,2]
[401970605,1768428644376,-197.967,0.00025092,2]
[401970606,1768428644386,-3162.0,0.00025098,2]
[401970607,1768428644396,-168.0,0.00025105,2]
[401970608,1768428644405,-168.0,0.00025106,2]
[401970609,1768428644415,-250.0,0.00025205,2]
[401970610,1768428644427,-500.0,0.00025206,2]
[401970611,1768428644437,-1000.0,0.00025244,10]
[401970612,1768428644447,-791.0,0.00025244,10]
[401970613,1768428644457,-29614.9,0.000253,2]
[401970614,1768428644467,-500.0,0.00025343,2]
[401970615,1768428644477,-186.43254288,0.00025366,3]
[401970616,1768428644487,-168.0,0.00025384,2]
[401970617,1768428644496,-183.58,0.00025441,2]
[401970618,1768428644506,-813.50644317,0.00025465,14]
[401970619,1768428644516,-500.0,0.0002548,2]
[401970620,1768428644527,-2322.78,0.000255,7]
[401970621,1768428644537,-168.0,0.00025524,2]
[401970622,1768428644549,-2953.11393828,0.00025603,2]
[401970623,1768428644559,-500.0,0.00025617,2]
[401970624,1768428644569,-168.0,0.00025646,2]
[401970625,1768428644579,-248.76,0.000257,7]
[401970626,1768428644590,-218.33,0.000257,7]
[401970627,1768428644600,-168.0,0.00025716,2]
[401970628,1768428644611,-152.98,0.00025753,2]
[401970629,1768428644621,-350.0,0.00025753,2]
[401970630,1768428644631,-500.0,0.00025754,2]
[401970631,1768428644641,-168.0,0.00025777,2]
[401970632,1768428644651,-168.0,0.00025797,2]
[401970633,1768428644661,-167.77,0.000258,7]
[401970634,1768428644671,-2953.11393828,0.00025827,2]
[401970635,1768428644681,-419.3213251,0.00025877,2]
[401970636,1768428644691,-1677.28530042,0.00025877,2]
[401970637,1768428644702,-3773.89192594,0.00025877,2]
[401970638,1768428644713,-6709.14120167,0.00025877,2]
[401970639,1768428644723,-10483.03312761,0.00025877,2]
[401970640,1768428644733,-548.06009394,0.00025877,2]
[401970641,1768428644743,-986.50816909,0.00025877,2]
[401970642,1768428644754,-1753.79230061,0.00025877,2]
[401970643,1768428644765,-2740.3004697,0.00025877,2]
[401970644,1768428644775,-3946.03267637,0.00025877,2]
[401970645,1768428644786,-5370.98892061,0.00025877,2]
[401970646,1768428644797,-7015.16920243,0.00025877,2]
[401970647,1768428644807,-8878.57352182,0.00025877,2]
[401970648,1768428644818,-10961.20187879,0.00025877,2]
[401970649,1768428644829,-13263.05427334,0.00025877,2]
[401970650,1768428644839,-500.0,0.00025891,2]
[401970651,1768428644850,-168.0,0.00025912,2]
[401970653,1768428644860,-241.0,0.00025918,14]
[401970655,1768428644870,-168.0,0.00025973,2]
[401970656,1768428644881,-813.50644317,0.00025988,15]
[401970658,1768428644891,-4332.57,0.00026027,2]
[401970660,1768428644902,-500.0,0.00026028,2]
[401970661,1768428644912,-5000.0,0.00026068,2]
[401970662,1768428644922,-778.0,0.000261,2]
[401970663,1768428644932,-2953.11393828,0.0002616,2]
[401970664,1768428644942,-500.0,0.00026165,2]
[401970665,1768428644953,-714.6,0.00026171,2]
[401970666,1768428644964,-745.73017152,0.00026189,3]
[401970667,1768428644975,-3915.7,0.000262,14]
[401970668,1768428644986,-589.69745305,0.00026252,5]
[401970669,1768428644998,-450.0,0.00026301,2]
[401970670,1768428645008,-500.0,0.00026302,2]
[401970671,1768428645019,-8540.05724789,0.00026393,2]
[401970672,1768428645029,-29614.9,0.000264,2]
[401970673,1768428645039,-500.0,0.00026439,2]
[401970674,1768428645049,-2322.78,0.000265,7]
[401970675,1768428645059,-813.50644317,0.0002651,17]
[401970676,1768428645070,-2953.11393828,0.0002654,2]
[401970677,1768428645081,-2953.11393828,0.00026599,2]
[401970678,1768428645091,-151.0,0.000266,12]
[401970679,1768428645101,-791.169537,0.00026682,2]
[401970681,1768428645112,-153.0,0.00026826,2]
[401970682,1768428645122,-1217.1577649,0.00026826,2]
[401970683,1768428645132,-153.0,0.00026826,2]
[401970684,1768428645142,-153.0,0.00026826,2]
[401970685,1768428645152,-153.0,0.00026826,2]
[401970686,1768428645162,-153.0,0.00026826,2]
[401970687,1768428645173,-153.0,0.00026826,2]
[401970688,1768428645184,-153.0,0.00026826,2]
[401970689,1768428645194,-153.0,0.00026826,2]